bitfinex/quotes_SOLUSD_20250722
["timestamp","ask_amount","ask_price","bid_price","bid_amount"]
[1753211754005,0.2,202.28,202.22,49.53014861]
[1753211754693,5.83368154,202.28,202.22,43.25836684]
[1753211754892,5.83368154,202.28,202.22,38.12468397]
[1753211755098,5.83368154,202.28,202.22,43.25836684]
[1753211755406,5.14368154,202.28,202.22,43.25836684]
[1753211755606,0.75,202.25,202.22,21.91836684]
[1753211755806,0.75,202.25,202.22,43.25836684]
[1753211756122,0.06,202.25,202.22,43.25836684]
[1753211757401,0.06,202.25,202.22,49.03563769]
[1753211760700,0.06,202.25,202.22,78.75563769]
[1753211763011,0.06,202.25,202.22,52.28195482]
[1753211763229,0.06,202.25,202.22,57.41563769]
[1753211763396,0.06,202.25,202.23,16.92684554]
[1753211763599,0.06,202.25,202.24,57.21961068]
[1753211763796,0.06,202.25,202.24,79.24961068]
[1753211766032,0.06,202.25,202.24,26.86298709]
[1753211766226,0.06,202.25,202.22,0.03]
[1753211766410,0.69,202.24,202.22,21.37]
[1753211767291,0.06,202.25,202.24,0.14216157]
[1753211767498,0.06,202.25,202.24,44.09052841]
[1753211768803,0.06,202.25,202.24,22.75052841]
[1753211769003,0.06,202.25,202.24,74.28499043]
[1753211770232,0.06,202.25,202.24,79.22961068]
[1753211771710,0.06,202.25,202.24,78.04514866]
[1753211774212,0.06,202.25,202.24,78.73514866]
[1753211775435,0.2,202.28,202.24,78.73514866]
[1753211775436,0.2,202.28,202.27,46.50468397]
[1753211775607,0.2,202.28,202.27,72.95836684]
[1753211775935,0.2,202.28,202.27,74.05860685]
[1753211776432,0.2,202.28,202.27,79.00249373]
[1753211778425,0.2,202.3,202.29,72.64684554]
[1753211778635,0.2,202.3,202.29,104.72855108]
[1753211778842,0.2,202.3,202.29,77.78052841]
[1753211779024,0.2,202.3,202.29,99.10052841]
[1753211780210,0.2,202.3,202.29,77.78052841]
[1753211780418,0.2,202.3,202.29,82.7239265]
[1753211780621,0.2,202.3,202.29,104.0439265]
[1753211780818,0.91,202.3,202.29,51.63836684]
[1753211781020,0.2,202.3,202.29,77.90176493]
[1753211782811,0.2,202.3,202.29,72.95836684]
[1753211783005,0.91,202.3,202.29,72.95836684]
[1753211783207,0.91,202.3,202.29,77.90436684]
[1753211783505,0.91,202.3,202.29,72.95836684]
[1753211784034,0.91,202.3,202.29,67.82468397]
[1753211784620,0.91,202.3,202.29,46.50468397]
[1753211784941,0.91,202.3,202.29,67.82468397]
[1753211785235,0.2,202.3,202.29,72.95836684]
[1753211785430,0.2,202.3,202.29,77.90176493]
[1753211786080,0.2,202.3,202.29,72.76808206]
[1753211786235,0.2,202.3,202.29,77.90176493]
[1753211786540,0.2,202.3,202.29,78.60176493]
[1753211786713,0.2,202.3,202.29,77.90176493]
[1753211787505,0.2,202.3,202.29,67.82468397]
[1753211787709,0.91,202.3,202.29,72.95836684]
[1753211788242,0.2,202.3,202.29,77.90176493]
[1753211788613,0.2,202.3,202.29,26.86176493]
[1753211788950,0.2,202.3,202.29,48.18176493]
[1753211789532,0.2,202.3,202.29,48.3239265]
[1753211790117,0.2,202.3,202.29,27.0039265]
[1753211790341,0.2,202.3,202.29,48.3239265]
[1753211791747,0.91,202.3,202.27,0.41643357]
[1753211791931,0.71,202.29,202.28,38.08468397]
[1753211792940,0.2,202.3,202.28,38.08468397]
[1753211793137,0.2,202.3,202.28,21.3]
[1753211793317,0.71,202.29,202.28,21.3]
[1753211793523,0.71,202.29,202.27,26.85011644]
[1753211794853,0.71,202.29,202.27,21.71643357]
[1753211795050,5.84368287,202.28,202.27,0.41643357]
[1753211795520,26.0,202.25,202.24,0.03]
[1753211795720,26.0,202.25,202.22,0.03]
[1753211795721,30.94486475,202.23,202.22,0.03]
[1753211795922,36.07854762,202.23,202.17,21.33]
[1753211796145,5.13368287,202.19,202.17,0.03]
[1753211796331,5.13368287,202.18,202.17,1e-08]
[1753211796638,5.84368287,202.18,202.17,1e-08]
[1753211796844,14.97469646,202.18,202.17,1e-08]
[1753211797045,26.0,202.15,202.13,1e-08]
[1753211797246,26.0,202.11,202.09,0.03]
[1753211797421,5.13368287,202.1,202.09,0.03]
[1753211797931,5.13368287,202.1,202.06,0.03]
[1753211797932,26.0,202.07,202.06,0.03]
[1753211798135,31.13368287,202.07,202.06,0.03]
[1753211798333,31.13368287,202.07,202.03,0.1]
[1753211798334,37.77348287,202.07,202.03,0.1]
[1753211798636,31.13368287,202.04,202.03,0.1]
[1753211798839,31.13368287,202.04,202.01,0.03]
[1753211799022,26.0,201.99,201.97,0.03]
[1753211799218,34.23551488,201.99,201.97,0.03]
[1753211799445,26.0,201.99,201.97,0.03]
[1753211799649,0.71,202.03,201.97,0.03]
[1753211799854,30.95084911,201.99,201.97,0.03]
[1753211800544,4.95033909,202.01,201.97,0.03]
[1753211800848,13.18585397,202.01,201.97,0.03]
[1753211801033,0.71,202.0,201.97,0.03]
[1753211801946,5.66050076,202.0,201.97,0.03]
[1753211802924,0.71,201.99,201.97,0.03]
[1753211803131,8.94551488,201.99,201.97,0.03]
[1753211803435,34.94551488,201.98,201.97,0.03]
[1753211804125,39.89650012,201.98,201.97,0.03]
[1753211804639,26.0,201.97,201.96,1e-08]
[1753211804826,34.94551488,201.97,201.96,1e-08]
[1753211806047,39.89674526,201.97,201.96,1e-08]
[1753211806238,39.89674526,201.97,201.93,0.1]
[1753211806239,26.0,201.94,201.93,1e-08]
[1753211806439,55.55551488,201.94,201.86,0.03]
[1753211806645,8.23551488,201.87,201.86,0.03]
[1753211806844,8.23551488,201.88,201.86,0.03]
[1753211807237,8.23551488,201.87,201.86,0.03]
[1753211808035,13.18919794,201.87,201.86,0.03]
[1753211808572,2.46866247,201.92,201.86,8.91551488]
[1753211808573,26.0,201.92,201.86,8.91551488]
[1753211808759,21.32,201.94,201.88,8.23551488]
[1753211808943,21.32,201.94,201.89,8.23551488]
[1753211809146,13.1872356,201.95,201.86,0.68]
[1753211809147,4.95172072,201.95,201.91,8.23551488]
[1753211809352,4.95172072,201.95,201.9,17.43468397]
[1753211809533,4.95172072,201.95,201.92,8.23551488]
[1753211809950,4.95172072,201.95,201.91,8.23551488]
[1753211810371,4.95147553,201.96,201.91,8.23551488]
[1753211810571,8.23551488,201.93,201.87,8.88551488]
[1753211810951,8.23551488,201.94,201.87,0.65]
[1753211811147,8.92551488,201.93,201.87,16.78468397]
[1753211811364,26.0,201.95,201.89,16.78468397]
[1753211811558,26.0,201.95,201.92,8.23551488]
[1753211811743,5.64147553,201.96,201.92,8.23551488]
[1753211811943,0.69,201.95,201.9,25.02019885]
[1753211812379,4.95147553,201.96,201.91,8.23551488]
[1753211812565,52.27122239,201.98,201.93,8.23551488]
[1753211813259,52.27122239,201.98,201.89,8.23551488]
[1753211813260,8.23551488,201.95,201.89,8.23551488]
[1753211813462,8.23551488,201.95,201.9,16.78468397]
[1753211813645,0.69,201.97,201.91,8.23551488]
[1753211813848,4.94975993,202.03,201.97,16.78468397]
[1753211814073,26.0,202.02,201.99,8.23551488]
[1753211814249,4.94975993,202.03,202.0,8.23551488]
[1753211814750,26.0,202.01,201.99,8.23551488]
[1753211815355,4.94975993,202.03,201.99,8.23551488]
[1753211816193,5.63975993,202.03,201.98,8.23551488]
[1753211816557,5.63975993,202.03,201.97,17.43468397]
[1753211816558,4.94975993,202.03,201.99,8.23551488]
[1753211816783,26.26947956,202.05,202.01,8.23551488]
[1753211816966,4.94878012,202.07,202.03,8.23551488]
[1753211817273,26.0,202.06,202.03,8.23551488]
[1753211817755,26.69,202.06,202.01,8.23551488]
[1753211818086,26.69,202.06,202.0,17.43468397]
[1753211818087,0.69,202.05,202.0,25.02019885]
[1753211818288,4.94951494,202.04,201.99,8.23551488]
[1753211818980,26.0,202.02,201.94,0.65]
[1753211819281,8.23551488,202.0,201.94,8.23551488]
[1753211819458,26.69,202.01,201.94,8.23551488]
[1753211819662,8.23551488,202.0,201.94,8.23551488]
[1753211819861,8.23551488,202.0,201.93,16.81468397]
[1753211819862,8.23551488,202.0,201.93,25.05019885]
[1753211820070,8.23551488,201.98,201.93,16.81468397]
[1753211820366,4.95123038,201.97,201.93,16.81468397]
[1753211822153,0.69,201.96,201.93,0.03]
[1753211822354,4.95172072,201.95,201.93,0.03]
[1753211822790,5.64172072,201.95,201.93,0.03]
[1753211823003,4.95172072,201.95,201.93,0.03]
[1753211824089,5.64172072,201.95,201.93,0.03]
[1753211824897,8.92551488,201.94,201.93,0.03]
[1753211825192,8.23551488,201.94,201.93,0.03]
[1753211825372,30.24551488,201.94,201.93,0.03]
[1753211826363,30.24551488,201.94,201.87,0.3286049]
[1753211826364,26.0,201.91,201.87,0.3286049]
[1753211826567,26.0,201.91,201.82,0.03]
[1753211826568,26.0,201.85,201.82,0.03]
[1753211826798,4.95491031,201.82,201.81,0.03]
[1753211826966,39.19042519,201.82,201.81,0.03]
[1753211827165,39.88042519,201.82,201.81,0.03]
[1753211827664,39.88042519,201.82,201.8,1e-08]
[1753211827900,8.92551488,201.81,201.8,1e-08]
[1753211828101,34.92551488,201.81,201.8,1e-08]
[1753211828990,39.88067071,201.81,201.8,1e-08]
[1753211829777,61.22067071,201.81,201.8,1e-08]
[1753211831069,4.95515583,201.81,201.8,1e-08]
[1753211831270,4.95515583,201.81,201.8,8.23551489]
[1753211831574,4.95515583,201.81,201.8,1e-08]
[1753211831797,30.95515583,201.81,201.8,1e-08]
[1753211831968,26.0,201.81,201.8,1e-08]
[1753211832164,26.29487263,201.83,201.8,1e-08]
[1753211833378,34.53038751,201.83,201.8,1e-08]
[1753211834103,4.95487263,201.83,201.81,16.78468397]
[1753211834267,30.95443746,201.84,201.8,8.88551489]
[1753211834472,4.95419073,201.85,201.82,8.23551488]
[1753211834791,30.95419073,201.85,201.82,8.88551488]
[1753211835180,30.95419073,201.85,201.81,25.02019885]
[1753211835370,30.95419073,201.85,201.81,16.78468397]
[1753211835910,39.18970561,201.85,201.8,1e-08]
[1753211836085,30.95419073,201.85,201.8,8.23551489]
[1753211836289,30.95419073,201.85,201.8,8.88551489]
[1753211836682,52.26514033,201.85,201.8,1e-08]
[1753211836871,8.23551488,201.83,201.8,1e-08]
[1753211837073,4.95491031,201.82,201.8,1e-08]
[1753211837802,34.93551488,201.81,201.8,1e-08]
[1753211839086,39.89067071,201.81,201.8,1e-08]
[1753211839288,31.65515583,201.81,201.8,1e-08]
[1753211839677,61.23067071,201.81,201.8,1e-08]
[1753211841076,52.99515583,201.81,201.8,1e-08]
[1753211841277,21.34,201.83,201.8,1e-08]
[1753211841703,8.23551488,201.81,201.8,1e-08]
[1753211842383,8.23551488,201.82,201.8,1e-08]
[1753211843186,39.19067071,201.81,201.8,1e-08]
[1753211843576,39.89067071,201.81,201.8,1e-08]
[1753211844409,60.53067071,201.81,201.8,1e-08]
[1753211844616,52.29515583,201.81,201.8,1e-08]
[1753211845386,52.29515583,201.81,201.8,0.68000001]
[1753211845794,52.29515583,201.81,201.8,1e-08]
[1753211847210,60.53067071,201.81,201.8,1e-08]
[1753211848921,26.0,201.85,201.8,8.91551489]
[1753211849089,21.34,201.84,201.81,8.23551488]
[1753211849295,21.34,201.84,201.82,8.91551488]
[1753211849682,21.34,201.84,201.82,8.23551488]
[1753211849881,21.34,201.84,201.83,0.68]
[1753211851084,4.95466481,201.83,201.8,1e-08]
[1753211851297,26.0,201.83,201.81,8.91551488]
[1753211851503,47.34,201.83,201.81,8.91551488]
[1753211852096,47.34,201.83,201.82,0.68]
[1753211853012,52.29466481,201.83,201.82,0.68]
[1753211855121,0.06,201.85,201.83,16.78468397]
[1753211855292,21.38,201.85,201.82,16.78468397]
[1753211855612,34.56975378,201.85,201.8,17.46468398]
[1753211855812,26.3342389,201.85,201.8,25.02019886]
[1753211856018,26.3342389,201.85,201.82,8.23551488]
[1753211856195,26.3342389,201.85,201.82,8.91551488]
[1753211856392,26.3342389,201.85,201.83,0.68]
[1753211856801,26.3342389,201.85,201.8,8.23551489]
[1753211857121,26.3342389,201.85,201.81,0.68]
[1753211857920,26.7,201.84,201.8,1e-08]
[1753211858102,34.93551488,201.84,201.8,1e-08]
[1753211858302,34.23551488,201.82,201.8,1e-08]
[1753211858496,21.32,201.81,201.8,1e-08]
[1753211859018,34.23551488,201.82,201.8,0.68000001]
[1753211859019,26.0,201.82,201.8,0.68000001]
[1753211859319,47.32,201.82,201.8,1e-08]
[1753211859813,52.2750757,201.82,201.8,0.68000001]
[1753211860018,5.01427015,201.85,201.81,8.91551488]
[1753211860208,5.01427015,201.85,201.8,1e-08]
[1753211860515,5.01427015,201.85,201.8,0.68000001]
[1753211862118,5.01427015,201.85,201.8,1e-08]
[1753211862119,13.94978503,201.85,201.8,1e-08]
[1753211862321,5.01427015,201.85,201.8,1e-08]
[1753211862499,5.01427015,201.85,201.8,8.91551489]
[1753211864396,5.01427015,201.85,201.81,0.68]
[1753211865214,5.01427015,201.85,201.82,0.68]
[1753211865420,5.01427015,201.85,201.82,8.91551488]
[1753211865715,5.01427015,201.85,201.82,0.68]
[1753211866111,5.01427015,201.85,201.82,8.91551488]
[1753211866418,0.06,201.85,201.83,0.68]
[1753211866912,0.06,201.85,201.84,0.68]
[1753211867701,0.06,201.85,201.81,8.94551488]
[1753211867899,0.06,201.85,201.81,17.49468397]
[1753211868606,26.0,201.82,201.8,1e-08]
[1753211870328,30.95492209,201.82,201.8,1e-08]
[1753211870819,30.21551488,201.81,201.8,1e-08]
[1753211872428,35.17067071,201.81,201.8,1e-08]
[1753211872630,26.27515583,201.81,201.8,1e-08]
[1753211872812,35.17067071,201.81,201.8,1e-08]
[1753211874916,34.51067071,201.81,201.8,1e-08]
[1753211875912,35.17067071,201.81,201.8,1e-08]
[1753211876510,35.31283228,201.81,201.8,1e-08]
[1753211877141,8.23551488,201.76,201.74,1e-08]
[1753211877438,29.55551488,201.75,201.74,1e-08]
[1753211877821,30.21551488,201.75,201.74,1e-08]
[1753211878028,35.17214437,201.75,201.74,1e-08]
[1753211879838,5.61564695,201.79,201.74,0.71000001]
[1753211880043,4.9546771,201.83,201.76,8.23551488]
[1753211880217,21.32,201.82,201.77,0.71]
[1753211880424,29.55551488,201.82,201.77,0.71]
[1753211880834,8.23551488,201.81,201.77,0.71]
[1753211881243,21.32,201.82,201.74,1e-08]
[1753211881244,8.23551488,201.78,201.74,1e-08]
[1753211881544,8.23551488,201.77,201.74,1e-08]
[1753211882114,26.27593454,201.78,201.74,1e-08]
[1753211882349,0.06,201.85,201.78,16.78468397]
[1753211882638,55.61551488,201.85,201.79,8.94551488]
[1753211883343,55.61551488,201.85,201.78,16.78468397]
[1753211883344,8.23551488,201.8,201.75,0.71]
[1753211883547,26.0,201.82,201.75,0.71]
[1753211883548,8.23551488,201.79,201.75,0.71]
[1753211883847,8.23551488,201.77,201.74,29.69000001]
[1753211884044,8.23551488,201.77,201.74,1e-08]
[1753211884220,34.23551488,201.8,201.75,0.71]
[1753211884415,34.23551488,201.8,201.76,0.71]
[1753211884416,26.0,201.78,201.76,0.71]
[1753211884927,34.23551488,201.78,201.74,1e-08]
[1753211885248,26.0,201.78,201.74,0.71000001]
[1753211885627,39.19154599,201.78,201.74,1e-08]
[1753211886124,30.95603111,201.78,201.74,0.71000001]
[1753211886334,26.0,201.78,201.75,8.94551488]
[1753211886537,26.0,201.78,201.76,0.71]
[1753211886746,26.0,201.78,201.74,1e-08]
[1753211886938,34.23551488,201.78,201.74,0.71000001]
[1753211887337,34.23551488,201.78,201.75,5.66658908]
[1753211887338,26.0,201.78,201.75,5.66658908]
[1753211887549,26.0,201.78,201.76,0.71]
[1753211887935,26.0,201.78,201.74,0.71000001]
[1753211888138,26.0,201.78,201.74,13.19235982]
[1753211888337,26.0,201.78,201.75,0.71]
[1753211888532,21.32,201.79,201.76,0.71]
[1753211889052,26.0,201.82,201.77,8.94551488]
[1753211889053,21.32,201.82,201.77,8.94551488]
[1753211889235,21.32,201.82,201.78,8.94551488]
[1753211889440,21.32,201.82,201.79,0.71]
[1753211890028,21.32,201.82,201.77,13.19163422]
[1753211890249,21.32,201.82,201.78,17.49468397]
[1753211890449,21.32,201.82,201.8,16.78468397]
[1753211890645,60.54972952,201.85,201.8,17.49468397]
[1753211890848,55.59551488,201.85,201.8,16.78468397]
[1753211891033,55.59551488,201.85,201.81,0.71]
[1753211891230,60.54975559,201.85,201.81,0.71]
[1753211891744,8.23551488,201.84,201.81,0.71]
[1753211892251,21.36,201.85,201.82,0.71]
[1753211892950,21.36,201.85,201.8,29.97544486]
[1753211892951,55.59551488,201.85,201.8,21.73992998]
[1753211893153,55.59551488,201.85,201.8,16.78468397]
[1753211893454,55.59551488,201.85,201.8,17.49468397]
[1753211893664,34.23551488,201.82,201.75,4.95644249]
[1753211893873,13.19071548,201.81,201.76,16.78468397]
[1753211894061,8.23551488,201.79,201.74,16.78468398]
[1753211894449,0.06,201.85,201.79,16.78468397]
[1753211894638,26.0,201.84,201.82,16.78468397]
[1753211894962,0.06,201.85,201.82,17.49468397]
[1753211895160,0.06,201.85,201.82,16.78468397]
[1753211895367,0.06,201.85,201.84,16.78468397]
[1753211896944,0.06,201.85,201.81,13.93773223]
[1753211896945,0.06,201.85,201.82,8.23551488]
[1753211897148,0.06,201.85,201.82,16.78468397]
[1753211897771,5.01417389,201.85,201.81,0.71]
[1753211898165,8.23551488,201.84,201.79,16.78468397]
[1753211898345,8.23551488,201.84,201.79,17.46468397]
[1753211898544,39.24968877,201.85,201.79,25.02019885]
[1753211898765,39.24968877,201.85,201.8,0.68]
[1753211899870,39.24968877,201.85,201.76,12.54089095]
[1753211899871,26.06,201.85,201.81,8.23551488]
[1753211900051,47.36,201.85,201.82,0.68]
[1753211900258,26.0,201.84,201.81,8.23551488]
[1753211900457,26.0,201.84,201.8,8.23551488]
[1753211900855,0.06,201.85,201.83,8.23551488]
[1753211901058,26.06,201.85,201.84,0.68]
[1753211901254,26.06,201.85,201.82,25.02019885]
[1753211901445,26.06,201.85,201.82,16.78468397]
[1753211901653,0.06,201.85,201.84,25.02019885]
[1753211901853,0.06,201.85,201.84,30.65461819]
[1753211902079,0.06,201.85,201.84,22.41910331]
[1753211902258,0.06,201.85,201.84,30.65461819]
[1753211904054,0.06,201.85,201.84,17.46468397]
[1753211904363,0.06,201.85,201.84,25.70019885]
[1753211905762,0.06,201.85,201.83,16.78468397]
[1753211906088,0.06,201.85,201.82,16.78468397]
[1753211906462,0.06,201.85,201.84,8.23551488]
[1753211907168,0.06,201.85,201.83,8.91551488]
[1753211907768,0.06,201.85,201.83,8.23551488]
[1753211908174,8.23551488,201.84,201.77,0.68]
[1753211908364,8.23551488,201.84,201.76,7.5847]
[1753211908365,26.06,201.85,201.81,8.23551488]
[1753211908571,26.06,201.85,201.82,8.91551488]
[1753211908783,0.06,201.85,201.82,8.91551488]
[1753211908987,0.06,201.85,201.82,16.78468397]
[1753211909583,0.06,201.85,201.82,8.23551488]
[1753211910581,0.06,201.85,201.81,25.02019885]
[1753211910781,0.06,201.85,201.81,25.70019885]
[1753211911196,0.06,201.85,201.81,30.65530785]
[1753211911393,0.06,201.85,201.82,8.23551488]
[1753211911573,0.06,201.85,201.84,16.78468397]
[1753211911972,0.06,201.85,201.81,29.69]
[1753211911973,0.06,201.85,201.81,8.23551488]
[1753211912174,0.06,201.85,201.83,16.78468397]
[1753211912889,0.06,201.85,201.83,8.91551488]
[1753211913082,0.06,201.85,201.84,25.70019885]
[1753211913718,0.06,201.85,201.84,16.78468397]
[1753211913892,0.06,201.85,201.81,16.78468397]
[1753211915377,0.06,201.85,201.81,25.02019885]
[1753211915989,0.77,201.85,201.8,25.02019885]
[1753211916208,0.06,201.85,201.8,25.02019885]
[1753211916377,0.06,201.85,201.81,8.23551488]
[1753211916575,34.23551488,201.83,201.74,1e-08]
[1753211916780,8.23551488,201.82,201.77,0.68]
[1753211916973,34.23551488,201.83,201.76,8.23551488]
[1753211917196,13.90046098,201.82,201.76,8.23551488]
[1753211918286,0.06,201.85,201.79,16.78468397]
[1753211918486,0.06,201.85,201.82,8.23551488]
[1753211918487,26.0,201.84,201.82,8.23551488]
[1753211918684,0.06,201.85,201.82,8.91551488]
[1753211918886,0.06,201.85,201.83,25.02019885]
[1753211919076,0.06,201.85,201.84,29.97461819]
[1753211919277,0.06,201.85,201.84,25.70019885]
[1753211922199,0.06,201.85,201.84,8.91551488]
[1753211923692,0.06,201.85,201.84,13.86993422]
[1753211927277,0.06,201.85,201.82,16.78468397]
[1753211927478,0.06,201.85,201.83,8.23551488]
[1753211927693,0.06,201.85,201.84,8.23551488]
[1753211928703,0.06,201.85,201.83,5.63464781]
[1753211928898,0.06,201.85,201.83,8.91551488]
[1753211929096,0.06,201.85,201.84,25.02019885]
[1753211929406,0.06,201.85,201.84,21.93624672]
[1753211930807,0.06,201.85,201.84,16.78468397]
[1753211931181,0.06,201.85,201.84,22.61624672]
[1753211931381,0.06,201.85,201.84,17.46468397]
[1753211931681,0.06,201.85,201.81,16.78468397]
[1753211931883,0.06,201.85,201.82,5.83156275]
[1753211932095,0.06,201.85,201.82,0.68]
[1753211932309,0.06,201.85,201.83,16.78468397]
[1753211932608,0.06,201.85,201.82,5.83156275]
[1753211932609,0.06,201.85,201.82,0.68]
[1753211933197,0.06,201.85,201.8,5.15156275]
[1753211933391,0.06,201.85,201.81,16.78468397]
[1753211933590,5.15156275,201.84,201.79,17.46468397]
[1753211933902,5.15156275,201.84,201.78,10.10739303]
[1753211933903,5.15156275,201.8,201.74,1e-08]
[1753211934085,5.15156275,201.78,201.74,1e-08]
[1753211934492,5.15156275,201.78,201.74,4.95683914]
[1753211934701,5.15156275,201.79,201.74,1e-08]
[1753211935080,10.10723106,201.79,201.74,16.78468398]
[1753211935385,0.06,201.85,201.75,5.15156275]
[1753211935601,26.0,201.81,201.78,5.15156275]
[1753211936109,26.0,201.81,201.78,5.83156275]
[1753211937310,21.28,201.84,201.8,21.93624672]
[1753211937487,21.28,201.84,201.8,22.61624672]
[1753211937684,21.28,201.84,201.8,16.78468397]
[1753211938085,21.28,201.84,201.74,21.42216158]
[1753211938086,5.15156275,201.81,201.74,0.68000001]
[1753211938284,5.15156275,201.79,201.74,1e-08]
[1753211938481,26.0,201.75,201.74,1e-08]
[1753211938684,31.15156275,201.75,201.74,1e-08]
[1753211938911,31.86156275,201.75,201.74,1e-08]
[1753211939091,26.0,201.75,201.74,1e-08]
[1753211940417,4.95564695,201.79,201.74,1e-08]
[1753211940598,12.52836951,201.84,201.74,1e-08]
[1753211940599,5.86156275,201.83,201.77,5.15156275]
[1753211940912,47.28,201.81,201.79,5.15156275]
[1753211941290,0.06,201.85,201.8,17.46468397]
[1753211941523,0.06,201.85,201.81,8.24689203]
[1753211941820,26.0,201.79,201.74,1e-08]
[1753211942114,8.24689203,201.75,201.74,1e-08]
[1753211942323,34.24689203,201.75,201.74,1e-08]
[1753211942537,39.91352152,201.75,201.74,1e-08]
[1753211942690,17.87225695,201.75,201.74,1e-08]
[1753211943997,17.87225695,201.75,201.71,0.03]
[1753211943998,18.01441852,201.75,201.71,0.03]
[1753211944306,8.24689203,201.72,201.71,0.03]
[1753211944500,34.48425867,201.72,201.71,0.03]
[1753211944888,35.19425867,201.72,201.71,0.03]
[1753211947118,35.19425867,201.72,201.69,0.1]
[1753211947119,26.0,201.7,201.69,0.1]
[1753211947320,26.0,201.7,201.65,0.03]
[1753211947321,42.03799203,201.7,201.65,0.03]
[1753211947528,42.03799203,201.7,201.49,8.0717]
[1753211947529,8.24689203,201.6,201.49,8.0717]
[1753211947724,29.52689203,201.6,201.52,0.68]
[1753211948103,29.52689203,201.6,201.49,8.0717]
[1753211948104,30.3790536,201.6,201.59,1e-08]
[1753211948308,8.95689203,201.6,201.59,1e-08]
[1753211948506,30.23689203,201.6,201.59,1e-08]
[1753211948741,34.48720949,201.6,201.59,1e-08]
[1753211948936,29.52689203,201.6,201.59,1e-08]
[1753211949719,0.71,201.69,201.61,29.69]
[1753211949904,0.71,201.69,201.62,16.78468397]
[1753211949905,8.24689203,201.67,201.62,16.78468397]
[1753211950233,26.0,201.63,201.59,1e-08]
[1753211950413,34.24689203,201.65,201.59,8.24689204]
[1753211950612,34.24689203,201.65,201.59,25.03157601]
[1753211951125,26.0,201.65,201.6,8.24689203]
[1753211951330,26.0,201.65,201.6,8.92689203]
[1753211951831,26.0,201.65,201.6,0.68]
[1753211951832,8.24689203,201.64,201.6,0.68]
[1753211952010,26.0,201.65,201.61,16.78468397]
[1753211952204,34.24689203,201.65,201.61,0.68]
[1753211952601,26.0,201.65,201.61,0.68]
[1753211953205,26.0,201.65,201.62,8.92689203]
[1753211953406,26.0,201.65,201.63,0.68]
[1753211953605,21.28,201.68,201.64,8.92689203]
[1753211953806,21.28,201.68,201.65,8.92689203]
[1753211954006,21.28,201.68,201.66,0.68]
[1753211954310,21.28,201.68,201.64,8.24689203]
[1753211954311,6.0014,201.81,201.67,25.031576]
[1753211954525,21.28,201.76,201.7,8.24689203]
[1753211954713,26.0,201.72,201.71,16.78468397]
[1753211954921,26.0,201.72,201.71,25.711576]
[1753211955138,21.28,201.75,201.71,25.711576]
[1753211955445,21.28,201.75,201.72,8.92689203]
[1753211955645,21.28,201.75,201.72,0.68]
[1753211956029,21.28,201.75,201.72,8.92689203]
[1753211956349,21.28,201.75,201.71,16.78468397]
[1753211956838,21.28,201.75,201.71,17.46468397]
[1753211957042,0.71,201.78,201.72,8.92689203]
[1753211957043,8.24689203,201.78,201.72,8.92689203]
[1753211957337,8.24689203,201.77,201.72,0.68]
[1753211957537,34.24689203,201.75,201.7,16.78468397]
[1753211957759,8.24689203,201.74,201.69,0.67]
[1753211958041,21.94,201.73,201.65,16.78468397]
[1753211958339,8.24689203,201.69,201.64,16.78468397]
[1753211958548,34.24689203,201.7,201.65,0.67]
[1753211958918,34.24689203,201.7,201.66,0.67]
[1753211959225,39.20476463,201.7,201.64,25.031576]
[1753211959614,8.24689203,201.69,201.64,16.78468397]
[1753211959815,30.9578726,201.7,201.59,6.54210001]
[1753211959816,8.24689203,201.65,201.59,6.54210001]
[1753211960043,26.0,201.67,201.59,16.78468398]
[1753211960044,8.24689203,201.64,201.59,16.78468398]